bitfinex-derivatives/quotes_BTCF0:USTF0_20250402
["timestamp","ask_amount","ask_price","bid_price","bid_amount"]
[1743632133022,0.18162199,83551.0,83550.0,0.5006]
[1743632133322,0.18162199,83551.0,83550.0,0.6202983]
[1743632133526,0.20054987,83551.0,83550.0,0.6202983]
[1743632134028,0.20054987,83551.0,83550.0,0.5006]
[1743632134420,0.20054987,83551.0,83550.0,0.47364731]
[1743632134625,0.19306286,83551.0,83550.0,0.47364731]
[1743632134942,0.07336596,83551.0,83550.0,0.59334561]
[1743632135321,0.01373723,83557.0,83556.0,0.1196897]
[1743632135528,0.02466757,83557.0,83556.0,0.5802897]
[1743632135828,0.02398757,83557.0,83556.0,0.1202897]
[1743632136036,0.16811387,83557.0,83556.0,0.1202897]
[1743632136330,0.16811387,83557.0,83556.0,0.0006]
[1743632137538,0.1196969,83551.0,83550.0,0.24012115]
[1743632137838,0.13097393,83551.0,83550.0,0.24072115]
[1743632138022,0.14386572,83551.0,83550.0,0.24012115]
[1743632138726,0.14386572,83551.0,83550.0,0.21380636]
[1743632139233,0.14386572,83551.0,83550.0,0.08740636]
[1743632139419,0.00748687,83551.0,83550.0,0.03435826]
[1743632139620,0.16539899,83551.0,83550.0,0.36499826]
[1743632139823,0.16539899,83551.0,83550.0,0.03499826]
[1743632140224,0.04570209,83551.0,83530.0,0.00047887]
[1743632140428,0.1197227,83533.0,83532.0,0.01567638]
[1743632140837,0.15840918,83533.0,83532.0,0.01567638]
[1743632141233,0.1197485,83515.0,83504.0,0.3608]
[1743632141428,0.3608,83522.0,83509.0,0.1796285]
[1743632141627,0.07627838,83515.0,83514.0,0.1197499]
[1743632141838,0.00017953,83524.0,83523.0,0.119737]
[1743632142137,0.3608,83536.0,83523.0,0.119737]
[1743632142138,0.0087835,83546.0,83538.0,0.1197155]
[1743632142443,0.62616059,83551.0,83538.0,0.1197155]
[1743632142444,0.62616059,83551.0,83550.0,0.1196983]
[1743632142628,0.23930554,83580.0,83550.0,0.1196983]
[1743632142629,0.23930554,83580.0,83563.0,0.0598392]
[1743632142831,0.23930554,83580.0,83579.0,0.1196568]
[1743632143131,1e-08,83588.0,83587.0,0.1196453]
[1743632143333,0.0853063,83612.0,83608.0,0.1196139]
[1743632143534,0.1309,83611.0,83597.0,0.33]
[1743632143738,0.1196382,83592.0,83591.0,0.1273]
[1743632143933,0.1196382,83592.0,83566.0,0.3608]
[1743632143934,0.1196496,83584.0,83583.0,0.3608]
[1743632144240,0.1309,83591.0,83576.0,0.1196573]
[1743632144425,0.1196659,83577.0,83576.0,0.1196573]
[1743632144931,0.1196611,83576.0,83575.0,0.00017942]
[1743632145741,0.1196836,83563.0,83555.0,0.3608]
[1743632146041,0.1197387,83523.0,83522.0,0.0598675]
[1743632146225,0.0598609,83534.0,83529.0,0.1197246]
[1743632146430,0.1197256,83531.0,83530.0,0.00047887]
[1743632146631,0.11924682,83531.0,83530.0,0.00047887]
[1743632146835,0.25046814,83531.0,83530.0,0.00047887]
[1743632147030,0.25094701,83531.0,83530.0,0.00047887]
[1743632147231,0.0598662,83527.0,83514.0,0.00047896]
[1743632147527,0.1197829,83491.0,83490.0,0.09975471]
[1743632147727,0.3608,83504.0,83484.0,0.22095435]
[1743632147932,0.0714597,83491.0,83490.0,0.1197844]
[1743632148139,0.3608,83519.0,83490.0,0.3608]
[1743632148437,0.01825232,83503.0,83502.0,0.1197671]
[1743632148745,0.00017966,83513.0,83512.0,0.1197528]
[1743632149537,0.00017966,83513.0,83512.0,0.4805528]
[1743632149731,0.00881693,83513.0,83512.0,0.4805528]
[1743632149930,0.02031261,83513.0,83512.0,0.1197528]
[1743632150243,0.02031261,83513.0,83512.0,0.4805528]
[1743632150428,0.3608,83546.0,83512.0,0.5108]
[1743632150630,0.01055252,83542.0,83541.0,0.1197112]
[1743632150837,0.3608,83568.0,83541.0,0.46820928]
[1743632150838,0.2553,83554.0,83541.0,0.46820928]
[1743632151036,0.2553,83554.0,83553.0,0.119694]
[1743632151528,0.25602,83554.0,83553.0,0.120294]
[1743632152037,0.25602,83554.0,83553.0,0.119894]
[1743632152238,0.25602,83554.0,83553.0,0.119494]
[1743632152435,0.25602,83554.0,83553.0,0.104394]
[1743632152628,0.3757126,83554.0,83553.0,0.104394]
[1743632152827,0.25602,83554.0,83547.0,0.28532604]
[1743632153036,0.25602,83554.0,83553.0,0.119694]
[1743632153235,0.25602,83554.0,83553.0,0.120294]
[1743632153731,0.00072,83554.0,83553.0,0.120294]
[1743632153926,0.0004,83555.0,83554.0,0.1196926]
[1743632154129,0.0004,83555.0,83554.0,0.1202926]
[1743632154536,0.00128001,83555.0,83554.0,0.1202926]
[1743632154737,0.12097121,83555.0,83554.0,0.1202926]
[1743632155638,0.00128001,83555.0,83554.0,0.1202926]
[1743632155839,0.00128001,83555.0,83554.0,0.0006]
[1743632155840,0.12097121,83555.0,83554.0,0.0006]
[1743632156040,0.1196998,83549.0,83548.0,0.1197007]
[1743632156339,0.0004,83555.0,83554.0,0.1196926]
[1743632156642,0.1196629,83575.0,83559.0,0.1196854]
[1743632156839,1e-08,83562.0,83561.0,0.1196826]
[1743632157034,0.12,83586.0,83561.0,0.1196826]
[1743632157035,0.3608,83588.0,83572.0,0.0598329]
[1743632157229,0.00100001,83587.0,83586.0,0.1196468]
[1743632157449,0.00100001,83587.0,83586.0,0.08282479]
[1743632157629,0.0598194,83592.0,83591.0,0.09269633]
[1743632157833,0.0835655,83592.0,83591.0,0.09341633]
[1743632158032,0.2154655,83592.0,83591.0,0.1203596]
[1743632158236,0.0237461,83592.0,83591.0,0.4811596]
[1743632158437,0.44204461,83600.0,83594.0,0.1196353]
[1743632158647,0.4205979,83622.0,83599.0,0.059814]
[1743632158942,0.00164001,83619.0,83618.0,0.119601]
[1743632159144,0.1195973,83621.0,83618.0,0.36204]
[1743632159335,0.060433,83629.0,83622.0,0.0597973]
[1743632159638,0.4803938,83623.0,83622.0,0.00132]
[1743632159836,0.1195981,83620.0,83619.0,0.1241]
[1743632160041,0.119601,83618.0,83617.0,0.00017943]
[1743632160245,0.120241,83618.0,83617.0,0.00017943]
[1743632160742,0.38985811,83618.0,83617.0,0.00017943]
[1743632161144,0.38985811,83618.0,83617.0,0.00145943]
[1743632161342,0.01125634,83618.0,83617.0,0.12106183]
[1743632161647,0.49770998,83618.0,83617.0,3e-08]
[1743632161843,0.49770998,83618.0,83610.0,0.1241]
[1743632161844,0.119611,83611.0,83610.0,0.1241]
[1743632162042,0.1196267,83600.0,83599.0,0.4804274]
[1743632162243,0.1196267,83600.0,83599.0,0.4812674]
[1743632162433,0.1196244,83602.0,83601.0,0.1196253]
[1743632162640,0.00084,83602.0,83601.0,0.1204653]
[1743632162840,0.37039313,83610.0,83609.0,0.1196139]
[1743632163040,0.37039313,83610.0,83600.0,0.1275]
[1743632163041,0.61217944,83610.0,83594.0,0.0004785]
[1743632163247,0.1196339,83595.0,83594.0,0.0013185]
[1743632163449,0.12023391,83595.0,83594.0,0.0004785]
[1743632163745,0.39699639,83595.0,83594.0,0.0004785]
[1743632164137,0.15726249,83595.0,83594.0,0.1201138]
[1743632164339,0.02676249,83595.0,83594.0,0.1201138]
[1743632164649,0.1196339,83595.0,83594.0,0.2555985]
[1743632164858,0.1204739,83595.0,83594.0,0.2555985]
[1743632165041,0.1204739,83595.0,83594.0,0.3752338]
[1743632165746,0.1808069,83609.0,83602.0,0.0598113]
[1743632165949,0.00064,83606.0,83605.0,0.1196196]
[1743632166155,0.00064,83606.0,83605.0,0.4815396]
[1743632166345,0.00017943,83610.0,83609.0,0.1196139]
[1743632166541,0.11979183,83610.0,83609.0,0.1207339]
[1743632166737,0.12039184,83610.0,83609.0,0.1207339]
[1743632166949,0.11979183,83610.0,83609.0,0.00112]
[1743632167144,0.48179184,83610.0,83609.0,0.00112]
[1743632167346,0.0598154,83598.0,83595.0,0.1292]
[1743632167651,0.1196325,83596.0,83595.0,0.1304]
[1743632167853,0.00984526,83596.0,83595.0,0.2500339]
[1743632168153,0.00984526,83596.0,83595.0,0.3752339]
[1743632168348,0.00868526,83596.0,83595.0,0.3752339]
[1743632168546,0.00017943,83610.0,83609.0,0.1196139]
[1743632168744,0.00133943,83610.0,83609.0,0.1207339]
[1743632169050,0.00017943,83610.0,83609.0,0.4507339]
[1743632169249,0.00017943,83610.0,83609.0,0.7031339]
[1743632169449,0.10781068,83621.0,83609.0,0.58352]
[1743632169650,0.10893069,83621.0,83620.0,0.1195981]
[1743632169849,0.10893069,83621.0,83620.0,0.1207181]
[1743632170452,0.10893069,83621.0,83620.0,0.2425181]
[1743632171355,0.00893069,83621.0,83620.0,0.2425181]
[1743632171651,0.12852739,83621.0,83620.0,0.2419681]
[1743632171856,0.12071671,83621.0,83620.0,0.2419681]
[1743632172957,0.00017943,83629.0,83628.0,0.1195867]
[1743632173148,0.0004,83651.0,83628.0,0.36224]
[1743632173456,0.00184,83651.0,83650.0,0.1195552]
[1743632173654,0.02245534,83669.0,83665.0,0.1195338]
[1743632173843,0.1277,83689.0,83671.0,0.059762]
[1743632174043,0.34613582,83691.0,83682.0,0.1195095]
[1743632174239,0.34613582,83691.0,83680.0,0.0597556]
[1743632174240,0.31431832,83691.0,83690.0,0.1194981]
[1743632174444,0.0004,83715.0,83698.0,0.1194867]
[1743632174653,0.38136356,83699.0,83698.0,0.4821667]
[1743632174840,0.38136356,83699.0,83698.0,0.1213667]
[1743632175041,0.50084876,83699.0,83698.0,0.00188]
[1743632175349,0.3608,83721.0,83698.0,0.5762667]
[1743632175550,0.1194817,83705.0,83704.0,0.1194751]
[1743632175748,0.0597319,83714.0,83704.0,0.1194751]
[1743632175749,0.0597359,83709.0,83706.0,0.0597371]
[1743632175948,0.1194638,83714.0,83713.0,0.1194638]
[1743632176145,0.1194724,83708.0,83707.0,0.258]
[1743632176342,0.1194724,83708.0,83707.0,0.12678]
[1743632176545,0.1194724,83708.0,83707.0,0.1249]
[1743632176746,0.1194724,83708.0,83707.0,0.12678]
[1743632176948,0.2421724,83708.0,83707.0,0.12678]
[1743632177261,0.1194838,83700.0,83699.0,0.00017921]
[1743632177451,0.1194838,83700.0,83699.0,0.11966441]
[1743632177651,0.1194838,83700.0,83699.0,0.00017921]
[1743632177957,0.3608,83700.0,83683.0,0.3608]
[1743632178153,0.1195067,83684.0,83683.0,0.36212]
[1743632178358,0.1195067,83684.0,83683.0,0.00132]
[1743632178559,0.1195181,83676.0,83675.0,0.1223]
[1743632178763,0.1195181,83676.0,83675.0,0.1208395]
[1743632179053,0.1195181,83676.0,83675.0,0.0014]
[1743632179258,0.1195195,83675.0,83674.0,0.00047804]
[1743632179553,0.1195195,83675.0,83667.0,0.00017921]
[1743632179554,0.1195295,83668.0,83667.0,0.00017921]
[1743632179759,0.4803295,83668.0,83667.0,0.00017921]
[1743632180149,0.1195424,83659.0,83644.0,0.3608]
[1743632180350,0.1195652,83643.0,83626.0,0.00047832]
[1743632180556,0.1195867,83628.0,83627.0,0.1232]
[1743632180750,0.1209067,83628.0,83627.0,0.12456]
[1743632180963,0.00132,83628.0,83627.0,0.1209481]
[1743632181257,0.1195743,83639.0,83638.0,0.1195683]
[1743632181457,0.00068,83639.0,83630.0,0.0597919]
[1743632181663,0.5401679,83635.0,83634.0,0.1195767]
[1743632181858,0.059789,83634.0,83626.0,0.00047832]
[1743632182059,0.1195981,83620.0,83610.0,0.00047841]
[1743632182264,0.48179811,83620.0,83619.0,0.00149932]
[1743632182655,0.48179811,83620.0,83619.0,0.00017932]
[1743632182856,0.74429811,83620.0,83619.0,0.00017932]
[1743632183365,0.38349811,83620.0,83619.0,0.12109892]
[1743632183860,0.74429811,83620.0,83619.0,0.12109892]
[1743632184364,0.00140001,83620.0,83619.0,0.12109892]
[1743632184561,0.3608,83631.0,83627.0,0.1195881]
[1743632184863,0.3608,83631.0,83627.0,0.7055081]
[1743632184864,0.4205912,83631.0,83627.0,0.7055081]
[1743632185065,0.3608,83631.0,83627.0,0.7055081]
[1743632185468,0.11976602,83628.0,83627.0,0.7055081]
[1743632185664,0.11976602,83628.0,83627.0,0.33172]
[1743632185870,0.11976602,83628.0,83627.0,0.00172]
[1743632186171,0.1195981,83620.0,83619.0,0.11977892]
[1743632186360,0.1195981,83620.0,83619.0,0.12149892]
[1743632186772,0.1195981,83620.0,83619.0,0.45149892]
[1743632186964,0.1195981,83620.0,83619.0,0.00189932]
[1743632187270,0.119611,83611.0,83602.0,0.2485]
[1743632187461,0.480411,83611.0,83607.0,0.119616]
[1743632187662,0.480411,83611.0,83608.0,0.1196147]
[1743632187860,0.480411,83611.0,83610.0,0.12009081]
[1743632188266,0.480411,83611.0,83610.0,0.12189081]
[1743632188466,0.480411,83611.0,83610.0,0.00227841]
[1743632188674,0.1196225,83603.0,83584.0,0.2578]
[1743632188867,0.1196339,83595.0,83587.0,0.119644]
[1743632189064,0.1196339,83595.0,83589.0,0.119642]
[1743632189266,0.1196339,83595.0,83590.0,0.1196408]
[1743632189464,0.2435,83596.0,83594.0,0.1201138]
[1743632189670,0.0598134,83600.0,83599.0,0.1196267]
[1743632189865,0.0598155,83597.0,83594.0,0.0004785]
[1743632190076,0.1196339,83595.0,83594.0,0.0004785]
[1743632190766,0.1196439,83588.0,83587.0,0.00017943]
[1743632190963,0.1196533,83582.0,83581.0,0.1794716]
[1743632191173,0.1196504,83584.0,83583.0,0.0598243]
[1743632191570,0.1196568,83579.0,83578.0,0.00047859]
[1743632191771,0.1196568,83579.0,83578.0,0.00227859]
[1743632191972,0.119674,83567.0,83563.0,0.21125403]
[1743632192174,0.1196783,83564.0,83563.0,0.21305403]
[1743632192762,0.1196783,83564.0,83563.0,0.0018]
[1743632193169,0.1928382,83566.0,83547.0,0.1242]
[1743632193170,0.1196797,83563.0,83547.0,0.1242]
[1743632193463,0.133,83563.0,83562.0,0.12015978]
[1743632193779,0.3608,83579.0,83571.0,0.1196683]
[1743632194071,0.3608,83579.0,83571.0,0.1214283]
[1743632194269,0.11984623,83572.0,83571.0,0.1214283]
[1743632194678,0.48064623,83572.0,83571.0,0.00176]
[1743632194879,0.1196783,83564.0,83563.0,0.1196794]
[1743632195376,0.1196783,83564.0,83563.0,0.00172]
[1743632195564,0.1196797,83563.0,83552.0,0.119695]
[1743632195871,0.26770995,83563.0,83556.0,0.1196883]
[1743632196276,0.26770995,83563.0,83549.0,0.1857496]
[1743632196477,0.26770995,83563.0,83554.0,0.1196916]
[1743632196679,0.26770995,83563.0,83555.0,0.1196907]
[1743632196975,0.26770995,83563.0,83560.0,0.0598419]
[1743632197277,0.27441312,83563.0,83553.0,0.0598465]
[1743632197482,0.27441312,83563.0,83554.0,0.3608]
[1743632197772,0.1196983,83550.0,83549.0,0.2455998]
[1743632197967,0.14382855,83550.0,83549.0,0.2473198]
[1743632198280,0.02536396,83550.0,83549.0,0.2473198]
[1743632199376,0.37869183,83565.0,83564.0,0.1196783]
[1743632199680,0.1196768,83567.0,83566.0,0.119674]
[1743632199871,0.1795139,83567.0,83566.0,0.119674]
[1743632200274,0.1196754,83566.0,83565.0,0.1254]
[1743632200582,0.059837,83567.0,83559.0,0.0598427]
[1743632200772,0.0598405,83562.0,83551.0,0.0598484]
[1743632200973,0.0598405,83562.0,83548.0,0.0598503]
[1743632200974,0.0598464,83554.0,83550.0,0.3608]
[1743632201179,0.0598441,83557.0,83534.0,0.3608]
[1743632201180,0.1197026,83547.0,83541.0,0.0598553]
[1743632201479,0.0598492,83550.0,83547.0,0.0598507]
[1743632201674,0.0598492,83550.0,83549.0,0.1196998]
[1743632201874,0.0598492,83550.0,83546.0,0.00047878]
[1743632201875,0.1197026,83547.0,83546.0,0.00047878]
[1743632202275,0.1197256,83531.0,83511.0,0.3608]
[1743632202578,0.1197256,83531.0,83522.0,0.0598689]
[1743632202779,0.1197256,83531.0,83526.0,0.1197319]
[1743632202978,0.1197256,83531.0,83523.0,0.1326]
[1743632203179,0.3756256,83531.0,83523.0,0.1326]
[1743632203486,0.3756256,83531.0,83524.0,0.1197344]
[1743632203684,0.3756256,83531.0,83526.0,0.1197327]
[1743632203883,0.3756256,83531.0,83525.0,0.1197339]
[1743632204083,0.39821111,83531.0,83525.0,0.1197331]
[1743632204385,0.39821111,83531.0,83526.0,0.33]
[1743632204582,0.39821111,83531.0,83518.0,0.4206715]
[1743632204881,0.39821111,83531.0,83525.0,0.0598668]
[1743632205074,0.39821111,83531.0,83523.0,0.0598684]
[1743632205274,0.39821111,83531.0,83530.0,0.12020587]
[1743632205474,0.02258551,83531.0,83530.0,0.12200587]
[1743632205685,0.1197245,83532.0,83531.0,0.1197241]
[1743632205873,0.1197245,83532.0,83531.0,0.1214441]
[1743632206080,0.1197245,83532.0,83531.0,0.00172]
[1743632206275,0.1197245,83532.0,83530.0,0.00047887]
[1743632206276,0.1197256,83531.0,83530.0,0.00047887]
[1743632206583,0.2500256,83531.0,83530.0,0.00047887]
[1743632207085,0.23525214,83533.0,83530.0,0.00047887]
[1743632207086,0.17539014,83533.0,83531.0,0.1197256]
[1743632207286,0.17539014,83533.0,83532.0,0.2477241]
[1743632207485,0.17539014,83533.0,83532.0,0.2495241]
[1743632207787,0.1197031,83550.0,83549.0,0.0598482]
[1743632207994,0.1795477,83552.0,83551.0,0.1196926]
[1743632208291,0.11987304,83555.0,83554.0,0.1196926]
[1743632208592,0.00017954,83555.0,83554.0,0.1214126]
[1743632208786,0.00017954,83555.0,83554.0,0.2494126]
[1743632208990,0.11987074,83555.0,83554.0,0.2494126]
[1743632209192,0.11987074,83555.0,83554.0,0.00172]
[1743632209389,0.1196983,83550.0,83549.0,0.119699]
[1743632209586,0.1197012,83548.0,83547.0,0.1197016]
[1743632209789,0.059862,83533.0,83528.0,0.3608]
[1743632209998,0.1197256,83531.0,83530.0,0.00219887]
[1743632210189,0.2501277,83532.0,83529.0,0.0598635]
[1743632210492,0.1284,83532.0,83531.0,0.1197256]
[1743632210696,0.1197198,83536.0,83535.0,0.1197184]
[1743632210892,0.1197198,83536.0,83535.0,0.1214784]
[1743632211080,0.13026849,83536.0,83535.0,0.1214784]
[1743632211284,0.13026849,83536.0,83535.0,0.00176]
[1743632211484,0.1795994,83530.0,83529.0,0.119723]
[1743632211686,0.0598654,83530.0,83529.0,0.121443]
[1743632211986,0.059858,83538.0,83537.0,0.1197155]
[1743632212285,0.19010561,83538.0,83537.0,0.1214355]
[1743632212597,0.307977,83538.0,83537.0,0.1214355]
[1743632213097,0.307977,83538.0,83537.0,0.00172]
[1743632213392,0.119717,83537.0,83536.0,0.1197177]
[1743632213587,0.119717,83537.0,83536.0,0.1215177]
[1743632213895,0.244617,83537.0,83536.0,0.1215177]
[1743632214293,0.244617,83537.0,83536.0,0.0018]
[1743632214801,0.00017954,83539.0,83536.0,0.1215184]
[1743632215090,0.00017954,83539.0,83538.0,0.4805155]
[1743632215294,0.0598445,83557.0,83552.0,0.1196955]
[1743632215595,0.480494,83553.0,83552.0,0.1214155]
[1743632216096,0.1196983,83551.0,83550.0,0.1196978]
[1743632216291,0.1196983,83551.0,83550.0,0.00176]
[1743632216482,0.1196983,83551.0,83550.0,0.1214583]
[1743632217192,0.1196983,83551.0,83550.0,0.00176]
[1743632217395,0.1196983,83550.0,83549.0,0.2422998]
[1743632217587,0.1196983,83550.0,83549.0,0.2440198]
[1743632217787,0.1196983,83550.0,83549.0,0.2457398]
[1743632217990,0.1196983,83550.0,83549.0,0.12432]
[1743632218188,0.1197084,83543.0,83527.0,0.1331]
[1743632218385,0.4805084,83543.0,83533.0,0.3608]
[1743632218885,0.1197084,83543.0,83537.0,0.059858]
[1743632219082,0.1197084,83543.0,83538.0,0.1245]
[1743632219394,0.1197084,83543.0,83542.0,0.00189954]
[1743632219592,0.1197084,83543.0,83542.0,0.24610934]
[1743632219792,0.1197084,83543.0,83542.0,0.12639954]
[1743632220289,0.3608,83543.0,83542.0,0.24438934]
[1743632220498,0.1197084,83545.0,83544.0,0.1197055]
[1743632220701,0.1197084,83545.0,83544.0,0.1215055]
[1743632221196,0.4805084,83545.0,83544.0,1e-07]
[1743632221385,0.1197084,83543.0,83542.0,0.00017954]
[1743632221589,0.0598537,83544.0,83524.0,0.1795971]
[1743632221787,0.1197342,83525.0,83524.0,0.0012]
[1743632222095,0.1796175,83519.0,83518.0,0.1197391]
[1743632222300,0.1795996,83527.0,83526.0,0.1197327]
[1743632222594,0.1795996,83527.0,83526.0,0.1209327]
[1743632222790,0.1795996,83527.0,83526.0,0.0012]
[1743632223187,0.1197313,83530.0,83529.0,0.1795851]
[1743632223392,0.1197249,83532.0,83531.0,0.1197227]
[1743632223692,0.1197249,83532.0,83531.0,0.0610622]
[1743632223895,0.1197249,83532.0,83531.0,0.0012]
[1743632224100,0.1197327,83526.0,83525.0,0.1314]
[1743632224590,0.1197327,83526.0,83525.0,0.0012]
[1743632225091,0.12093271,83526.0,83525.0,0.0012]
[1743632225489,0.1197485,83515.0,83514.0,0.00047896]
[1743632225794,0.49179693,83515.0,83514.0,6e-08]
[1743632226190,0.49179693,83515.0,83501.0,0.1332]
[1743632226191,0.1197686,83501.0,83482.0,0.36127914]
[1743632226393,0.0598875,83497.0,83482.0,0.36127914]
[1743632226593,0.4805772,83495.0,83494.0,0.35293005]
[1743632226788,0.49202563,83495.0,83494.0,0.35293005]
[1743632226989,0.1197844,83490.0,83489.0,0.39853612]
[1743632227199,0.1198001,83479.0,83478.0,0.49314519]
[1743632227411,0.0599033,83475.0,83466.0,0.63254384]
[1743632227694,0.4806174,83467.0,83466.0,0.60620582]
[1743632227896,0.4176074,83467.0,83466.0,0.60620582]
[1743632228096,0.45200327,83467.0,83466.0,0.60620582]
[1743632228301,0.45200327,83467.0,83466.0,0.38234167]
[1743632228507,0.1198245,83462.0,83450.0,1.00047933]
[1743632228800,0.15745198,83462.0,83461.0,0.71231056]
[1743632228986,0.21126575,83462.0,83461.0,0.71231056]
[1743632229194,0.09612459,83462.0,83461.0,0.83213656]
[1743632229495,0.0599138,83460.0,83450.0,0.70090913]
[1743632229698,0.1198403,83451.0,83450.0,0.70154913]
[1743632229886,0.14074065,83451.0,83450.0,0.70154913]
[1743632230091,0.1198403,83452.0,83450.0,0.70154913]
[1743632230296,0.13077965,83459.0,83450.0,0.70154913]
[1743632230495,0.05381377,83451.0,83450.0,0.82138943]
[1743632230698,0.1198403,83451.0,83450.0,0.70154913]
[1743632230997,0.29965407,83451.0,83450.0,0.70154913]
[1743632231198,0.05381377,83451.0,83450.0,1.18219093]
[1743632231589,0.00696142,83451.0,83450.0,1.51219093]
[1743632231795,0.1198351,83458.0,83457.0,0.1198303]
[1743632231991,0.00088,83458.0,83457.0,0.4813117]
[1743632232194,0.03873746,83458.0,83457.0,0.4813117]
[1743632232397,0.15856776,83458.0,83457.0,0.48628]
[1743632232596,0.15936776,83458.0,83457.0,0.81628]
[1743632232796,0.05076135,83458.0,83457.0,0.81628]
[1743632232998,0.00017965,83466.0,83457.0,0.96628]
[1743632233296,0.00064,83475.0,83474.0,0.1198073]
[1743632233499,0.1197674,83502.0,83474.0,0.3616]
[1743632233697,0.0598831,83503.0,83492.0,0.1197808]
[1743632233900,0.00239512,83503.0,83502.0,0.3608]
[1743632234093,0.00335513,83503.0,83502.0,0.36176]
[1743632234401,0.1197218,83534.0,83515.0,0.1197485]
[1743632234608,0.0598609,83534.0,83520.0,0.1197413]
[1743632234898,0.17391076,83521.0,83520.0,0.8115413]
[1743632235094,0.00017965,83529.0,83520.0,0.6918]
[1743632235294,0.02096254,83536.0,83528.0,0.4206646]
[1743632235494,0.1197184,83536.0,83535.0,0.3608]
[1743632235694,0.119727,83530.0,83529.0,0.1244]
[1743632235901,0.121087,83530.0,83529.0,0.48648]
[1743632236190,0.02194831,83536.0,83529.0,0.48648]
[1743632236191,0.0598511,83548.0,83529.0,0.63648]
[1743632236394,0.3457415,83550.0,83544.0,0.3608]
[1743632236598,0.31067499,83545.0,83544.0,0.36248]
[1743632236801,0.43038049,83545.0,83544.0,0.36248]
[1743632237508,0.43038049,83545.0,83544.0,0.00168]
[1743632237804,0.43038049,83545.0,83537.0,0.1246]
[1743632237805,0.1197155,83538.0,83537.0,0.1246]
[1743632238003,0.31135499,83545.0,83537.0,0.4866]
[1743632238194,0.4315805,83545.0,83544.0,0.3608]
[1743632238502,0.311875,83545.0,83544.0,0.4817869]
[1743632238690,0.4315805,83545.0,83544.0,0.36208]
[1743632239389,0.3315805,83545.0,83544.0,0.36208]
[1743632239590,0.3315805,83545.0,83544.0,0.00128]
[1743632239794,0.119717,83537.0,83536.0,0.00017965]
[1743632240005,0.12031701,83537.0,83536.0,0.00017965]
[1743632240398,0.12031701,83537.0,83528.0,0.3608]
[1743632240399,0.0598624,83532.0,83528.0,0.3608]
[1743632240709,0.1197284,83529.0,83528.0,0.362]
[1743632240896,0.00120001,83529.0,83528.0,0.4817299]
[1743632241098,0.0598596,83536.0,83528.0,0.362]
[1743632241297,0.02099535,83554.0,83535.0,0.3608]
[1743632241510,0.11988515,83545.0,83544.0,0.3608]
[1743632241707,0.11988515,83545.0,83544.0,0.3624]
[1743632241904,0.0004,83555.0,83544.0,0.3624]
[1743632242105,0.119694,83553.0,83552.0,0.3608]
[1743632242305,0.119694,83553.0,83552.0,0.36236]
[1743632242699,0.3612,83555.0,83554.0,0.1196926]
[1743632242897,0.0004,83555.0,83554.0,0.4804926]
[1743632243106,0.00017953,83563.0,83554.0,0.62006]
[1743632243310,0.1196864,83559.0,83556.0,0.1196891]
[1743632243506,0.00017953,83563.0,83558.0,0.0598434]
[1743632243711,0.00017953,83563.0,83559.0,0.2577]
[1743632243908,0.119684,83560.0,83559.0,0.25926]
[1743632244411,0.00017953,83563.0,83562.0,0.1196811]
[1743632244708,0.00017953,83563.0,83562.0,0.1212411]
[1743632244909,0.11985923,83563.0,83562.0,0.3789411]
[1743632245210,0.00017953,83563.0,83562.0,0.3789411]
[1743632245413,0.00017953,83563.0,83562.0,0.25926]
[1743632245703,0.11985923,83563.0,83562.0,0.25926]
[1743632245906,0.11985923,83563.0,83562.0,0.00156]
[1743632246098,0.1196983,83550.0,83534.0,0.2493]
[1743632246297,0.1196983,83550.0,83534.0,0.36902]
[1743632246497,0.1196983,83550.0,83544.0,0.3608]
[1743632246700,0.0598396,83564.0,83549.0,0.00125953]
[1743632246900,0.2516,83562.0,83557.0,0.3608]
[1743632247110,0.02025244,83569.0,83566.0,0.0598373]
[1743632247407,0.0004,83571.0,83570.0,0.1196697]
[1743632247597,0.0004,83571.0,83570.0,0.13954612]
[1743632248003,0.0004,83571.0,83570.0,0.34987642]
[1743632248203,0.0004,83571.0,83570.0,0.5167873]
[1743632248398,0.14244737,83579.0,83578.0,0.1196582]
[1743632248608,0.1,83600.0,83578.0,0.41065338]
[1743632248805,0.1,83600.0,83579.0,0.04865338]
[1743632248806,0.1196554,83580.0,83579.0,0.04865338]
[1743632249009,0.4804554,83580.0,83579.0,0.01983642]
[1743632249311,0.0004,83587.0,83586.0,0.1196468]
[1743632249501,0.0004,83587.0,83586.0,0.01983038]
[1743632249502,0.1200453,83587.0,83586.0,0.01983038]
[1743632249698,0.1200453,83587.0,83586.0,0.01979038]
[1743632249901,0.1196568,83579.0,83552.0,0.37927319]
[1743632250207,0.1196811,83562.0,83561.0,0.2509]
[1743632250504,0.1196811,83562.0,83561.0,0.03073951]
[1743632250908,0.1213,83563.0,83561.0,0.03073951]
[1743632251107,0.1196811,83562.0,83561.0,0.0008]
[1743632251408,0.1197155,83538.0,83537.0,0.1197169]
[1743632251610,0.1197155,83538.0,83537.0,0.14907696]
[1743632251815,0.3608,83546.0,83530.0,0.00047887]
[1743632252015,0.1197385,83522.0,83521.0,0.1232]
[1743632252400,0.1197385,83522.0,83500.0,0.0598848]
[1743632252401,0.1197485,83515.0,83500.0,0.0598848]
[1743632252709,0.3608,83519.0,83513.0,0.00017953]
[1743632253008,0.00017953,83530.0,83529.0,0.1197284]
[1743632253212,0.00017953,83530.0,83529.0,0.3690284]
[1743632253410,0.11990653,83530.0,83529.0,0.2493]
[1743632253615,0.00017953,83530.0,83520.0,0.0598705]
[1743632253804,0.00017953,83530.0,83521.0,0.1197375]
[1743632253805,0.1197413,83522.0,83521.0,0.1197375]
[1743632254005,0.1197413,83522.0,83513.0,0.00017953]
[1743632254006,0.1197428,83519.0,83513.0,0.00017953]
[1743632254207,0.1197485,83515.0,83514.0,0.12022886]
[1743632254412,0.0598732,83517.0,83516.0,0.1197471]
[1743632254814,0.1845732,83517.0,83516.0,0.1197471]
[1743632255023,0.0598643,83529.0,83518.0,0.0598719]
[1743632255217,0.1197471,83516.0,83515.0,0.6048485]
[1743632255417,0.1796042,83527.0,83526.0,0.1197313]
[1743632255606,0.059871,83520.0,83515.0,0.1243]
[1743632255806,0.1197485,83515.0,83514.0,0.00047896]
[1743632256010,0.12034851,83515.0,83514.0,0.00123896]
[1743632256319,0.12034851,83515.0,83514.0,0.00047896]
[1743632256508,0.12034851,83515.0,83489.0,0.3608]
[1743632256509,0.1197714,83499.0,83489.0,0.3608]
[1743632256709,0.1197572,83511.0,83510.0,0.0598767]
[1743632256911,0.2436,83514.0,83513.0,0.1197514]
[1743632257204,0.36395271,83514.0,83513.0,0.1197514]
[1743632257517,0.36394991,83514.0,83513.0,0.1205114]
[1743632258409,0.00060001,83514.0,83513.0,0.4813114]